fUSD/lending_fUSD_20240104
["ID","MTS","AMOUNT","RATE_DAILY","PERIOD"]
[310126062,1704376311380,-500.0,0.00035068,2]
[310126063,1704376311390,-500.0,0.00035068,2]
[310126064,1704376311400,-160.93617455,0.00035068,2]
[310126065,1704376311409,-1115.17,0.00035068,2]
[310126066,1704376311420,-500.0,0.00035068,2]
[310126067,1704376311430,-500.0,0.00035068,2]
[310126068,1704376311441,-500.0,0.00035068,2]
[310126069,1704376311451,-500.0,0.00035068,2]
[310126070,1704376311462,-3455.17,0.00035068,2]
[310126071,1704376311472,-500.0,0.00035068,2]
[310126072,1704376311483,-500.0,0.00035068,2]
[310126073,1704376311493,-3050.39,0.00035068,2]
[310126074,1704376311504,-1355.05,0.00035068,2]
[310126075,1704376311515,-926.09,0.00035068,2]
[310126076,1704376311525,-500.0,0.00035068,2]
[310126077,1704376311535,-500.0,0.00035068,2]
[310126078,1704376311545,-3332.3,0.00035068,2]
[310126079,1704376311555,-500.0,0.00035068,2]
[310126080,1704376311565,-500.0,0.00035068,2]
[310126081,1704376311575,-500.0,0.00035068,2]
[310126082,1704376311585,-622.83,0.00035068,2]
[310126083,1704376311595,-500.0,0.00035068,2]
[310126084,1704376311607,-2331.02,0.00035068,2]
[310126085,1704376311616,-500.0,0.00035068,2]
[310126086,1704376311626,-660.0,0.00035068,2]
[310126087,1704376311636,-500.0,0.00035068,2]
[310126088,1704376311646,-500.0,0.00035068,2]
[310126089,1704376311656,-500.0,0.00035068,2]
[310126090,1704376311666,-500.0,0.00035068,2]
[310126091,1704376311676,-661.88,0.00035068,2]
[310126092,1704376311686,-500.0,0.00035068,2]
[310126093,1704376311696,-500.0,0.00035068,2]
[310126094,1704376311706,-2608.4,0.00035068,2]
[310126095,1704376311716,-500.0,0.00035068,2]
[310126096,1704376311729,-1494.03,0.00035068,2]
[310126097,1704376311740,-1463.43,0.00035068,2]
[310126098,1704376311751,-500.0,0.00035068,2]
[310126099,1704376311762,-1043.9,0.00035068,2]
[310126100,1704376311773,-598.95,0.00035068,2]
[310126101,1704376311783,-1024.71,0.00035068,2]
[310126102,1704376311792,-500.0,0.00035068,2]
[310126103,1704376311802,-500.0,0.00035068,2]
[310126104,1704376311812,-609.43,0.00035068,2]
[310126105,1704376311823,-1321.13,0.00035068,2]
[310126106,1704376311833,-1809.81,0.00035068,2]
[310126107,1704376311843,-741.24,0.00035068,2]
[310126108,1704376311853,-955.44,0.00035068,2]
[310126109,1704376311863,-1179.95,0.00035068,2]
[310126110,1704376311872,-568.4,0.00035068,2]
[310126111,1704376311883,-824.39,0.00035068,2]
[310126112,1704376311893,-896.64,0.00035068,2]
[310126113,1704376311903,-500.0,0.00035068,2]
[310126114,1704376311913,-745.04,0.00035068,2]
[310126115,1704376311923,-673.43,0.00035068,2]
[310126116,1704376311932,-780.4,0.00035068,2]
[310126117,1704376311942,-537.65,0.00035068,2]
[310126118,1704376311951,-1236.0,0.00035068,2]
[310126119,1704376311961,-500.0,0.00035068,2]
[310126120,1704376311971,-642.93,0.00035068,2]
[310126121,1704376311981,-837.04,0.00035068,2]
[310126122,1704376311992,-1050.16,0.00035068,2]
[310126123,1704376312002,-500.0,0.00035068,2]
[310126124,1704376312012,-500.0,0.00035068,2]
[310126125,1704376312021,-500.0,0.00035068,2]
[310126126,1704376312031,-969.09,0.00035068,2]
[310126127,1704376312042,-500.0,0.00035068,2]
[310126128,1704376312052,-626.59,0.00035068,2]
[310126129,1704376312061,-532.7,0.00035068,2]
[310126130,1704376312071,-500.0,0.00035068,2]
[310126131,1704376312081,-517.15,0.00035068,2]
[310126132,1704376312091,-976.99,0.00035068,2]
[310126133,1704376312100,-833.15,0.00035068,2]
[310126134,1704376312111,-500.0,0.00035068,2]
[310126135,1704376312121,-500.0,0.00035068,2]
[310126136,1704376312131,-517.44,0.00035068,2]
[310126137,1704376312142,-500.0,0.00035068,2]
[310126138,1704376312152,-588.23,0.00035068,2]
[310126139,1704376312162,-2663.85,0.00035068,2]
[310126140,1704376312173,-524.48,0.00035068,2]
[310126141,1704376312183,-762.82,0.00035068,2]
[310126142,1704376312193,-3366.34,0.00035068,2]
[310126143,1704376312203,-516.2,0.00035068,2]
[310126144,1704376312213,-7010.51,0.00035068,2]
[310126145,1704376312223,-500.0,0.00035068,2]
[310126146,1704376312233,-500.0,0.00035068,2]
[310126147,1704376312243,-500.0,0.00035068,2]
[310126148,1704376312253,-864.34,0.00035068,2]
[310126149,1704376312263,-500.0,0.00035068,2]
[310126150,1704376312273,-162.46684797,0.00035089,30]
[310126151,1704376312282,-157.40104,0.00035098,2]
[310126152,1704376312292,-152.0,0.000351,2]
[310126153,1704376312301,-6829.27155038,0.00035145,2]
[310126154,1704376312312,-500.0,0.00035174,10]
[310126155,1704376312322,-152.5,0.00035174,2]
[310126156,1704376312332,-157.40104,0.00035198,2]
[310126157,1704376312343,-174.159972,0.00035211,2]
[310126158,1704376312354,-163.547368,0.00035211,2]
[310126159,1704376312363,-163.547368,0.00035211,2]
[310126160,1704376312373,-2000.0,0.00035223,2]
[310126161,1704376312383,-23924.072016,0.00035223,2]
[310126162,1704376312393,-371.296954,0.00035223,2]
[310126163,1704376312403,-153.84,0.00035245,2]
[310126164,1704376312412,-320.2,0.00035275,2]
[310126165,1704376312422,-2922.09,0.00035281,7]
[310126166,1704376312432,-2922.09,0.00035281,7]
[310126167,1704376312442,-157.40104,0.00035298,2]
[310126168,1704376312453,-150.0,0.00035319,2]
[310126169,1704376312463,-1105.69,0.00035342,2]
[310126170,1704376312473,-75340.363178,0.00035342,2]
[310126171,1704376312483,-11093.926834,0.00035342,2]
[310126172,1704376312494,-5119.495717,0.00035342,2]
[310126173,1704376312504,-389.54861672,0.00035342,2]
[310126174,1704376312514,-500.0,0.00035342,2]
[310126175,1704376312524,-514.24379972,0.00035342,2]
[310126176,1704376312534,-500.0,0.00035342,2]
[310126177,1704376312544,-500.0,0.00035342,2]
[310126178,1704376312554,-550.1,0.00035342,2]
[310126179,1704376312564,-500.0,0.00035342,2]
[310126180,1704376312574,-500.0,0.00035342,2]
[310126181,1704376312585,-500.0,0.00035342,2]
[310126182,1704376312594,-500.0,0.00035342,2]
[310126183,1704376312604,-500.0,0.00035342,2]
[310126184,1704376312614,-500.0,0.00035342,2]
[310126185,1704376312624,-688.97,0.00035342,2]
[310126186,1704376312634,-755.75,0.00035342,2]
[310126187,1704376312644,-1506.91,0.00035342,2]
[310126188,1704376312654,-500.0,0.00035342,2]
[310126189,1704376312664,-500.0,0.00035342,2]
[310126190,1704376312674,-872.68,0.00035342,2]
[310126191,1704376312684,-500.0,0.00035342,2]
[310126192,1704376312695,-1266.42,0.00035342,2]
[310126193,1704376312706,-500.0,0.00035342,2]
[310126194,1704376312717,-500.0,0.00035342,2]
[310126195,1704376312726,-500.0,0.00035342,2]
[310126196,1704376312736,-1122.66,0.00035342,2]
[310126197,1704376312746,-500.0,0.00035342,2]
[310126198,1704376312757,-500.0,0.00035342,2]
[310126199,1704376312768,-500.0,0.00035342,2]
[310126200,1704376312779,-683.22,0.00035342,2]
[310126201,1704376312790,-500.0,0.00035342,2]
[310126202,1704376312801,-500.0,0.00035342,2]
[310126203,1704376312811,-500.0,0.00035342,2]
[310126204,1704376312822,-559.7,0.00035342,2]
[310126205,1704376312832,-500.0,0.00035342,2]
[310126206,1704376312843,-500.0,0.00035342,2]
[310126207,1704376312854,-500.0,0.00035342,2]
[310126208,1704376312864,-500.0,0.00035342,2]
[310126209,1704376312874,-500.0,0.00035342,2]
[310126210,1704376312885,-500.0,0.00035342,2]
[310126211,1704376312896,-500.0,0.00035342,2]
[310126212,1704376312906,-372.64005267,0.00035342,2]
[310126213,1704376312916,-1749.13,0.00035342,2]
[310126214,1704376312926,-503.48,0.00035342,2]
[310126215,1704376312936,-500.0,0.00035342,2]
[310126216,1704376312946,-500.0,0.00035342,2]
[310126217,1704376312957,-500.0,0.00035342,2]
[310126218,1704376312968,-500.0,0.00035342,2]
[310126219,1704376312979,-500.0,0.00035342,2]
[310126220,1704376312990,-500.0,0.00035342,2]
[310126221,1704376313001,-500.0,0.00035342,2]
[310126222,1704376313011,-562.25,0.00035342,2]
[310126223,1704376313021,-500.0,0.00035342,2]
[310126224,1704376313032,-500.0,0.00035342,2]
[310126225,1704376313043,-501.18335023,0.00035342,2]
[310126226,1704376313053,-500.0,0.00035342,2]
[310126227,1704376313063,-868.86,0.00035342,2]
[310126228,1704376313074,-500.0,0.00035342,2]
[310126229,1704376313084,-500.0,0.00035342,2]
[310126230,1704376313095,-500.0,0.00035342,2]
[310126231,1704376313108,-302.86041961,0.00035342,2]
[310126232,1704376313119,-500.0,0.00035342,2]
[310126233,1704376313130,-500.0,0.00035342,2]
[310126234,1704376313141,-500.0,0.00035342,2]
[310126235,1704376313152,-1000.0,0.00035342,2]
[310126236,1704376313163,-528.23,0.00035342,2]
[310126237,1704376313173,-689.08,0.00035342,2]
[310126238,1704376313183,-500.0,0.00035342,2]
[310126239,1704376313194,-500.0,0.00035342,2]
[310126240,1704376313204,-500.0,0.00035342,2]
[310126241,1704376313215,-500.0,0.00035342,2]
[310126242,1704376313225,-819.39,0.00035342,2]
[310126243,1704376313235,-500.0,0.00035342,2]
[310126244,1704376313245,-501.43,0.00035342,2]
[310126245,1704376313256,-500.0,0.00035342,2]
[310126246,1704376313267,-500.0,0.00035342,2]
[310126247,1704376313278,-659.39,0.00035342,2]
[310126248,1704376313288,-500.0,0.00035342,2]
[310126249,1704376313299,-500.0,0.00035342,2]
[310126250,1704376313309,-500.0,0.00035342,2]
[310126251,1704376313320,-500.0,0.00035342,2]
[310126252,1704376313330,-500.0,0.00035342,2]
[310126253,1704376313340,-472.41803262,0.00035342,2]
[310126254,1704376313351,-500.0,0.00035342,2]
[310126255,1704376313362,-500.0,0.00035342,2]
[310126256,1704376313373,-580.98831143,0.00035342,2]
[310126257,1704376313383,-500.0,0.00035342,2]
[310126258,1704376313394,-500.0,0.00035342,2]
[310126259,1704376313404,-500.0,0.00035342,2]
[310126260,1704376313415,-500.0,0.00035342,2]
[310126261,1704376313426,-2553.32,0.00035342,2]
[310126262,1704376313436,-500.0,0.00035342,2]
[310126263,1704376313446,-500.0,0.00035342,2]
[310126264,1704376313457,-604.64,0.00035342,2]
[310126265,1704376313470,-500.0,0.00035342,2]
[310126266,1704376313482,-584.06,0.00035342,2]
[310126267,1704376313492,-681.98,0.00035342,2]
[310126268,1704376313502,-564.27,0.00035342,2]
[310126269,1704376313512,-500.0,0.00035342,2]
[310126270,1704376313523,-500.0,0.00035342,2]
[310126271,1704376313533,-500.0,0.00035342,2]
[310126272,1704376313543,-500.0,0.00035342,2]
[310126273,1704376313554,-500.0,0.00035342,2]
[310126274,1704376313564,-500.0,0.00035342,2]
[310126275,1704376313575,-817.16,0.00035342,2]
[310126276,1704376313585,-500.0,0.00035342,2]
[310126277,1704376313595,-3601.75,0.00035342,2]
[310126278,1704376313606,-500.0,0.00035342,2]
[310126279,1704376313617,-500.0,0.00035342,2]
[310126280,1704376313628,-500.0,0.00035342,2]
[310126281,1704376313638,-500.0,0.00035342,2]
[310126282,1704376313649,-500.0,0.00035342,2]
[310126283,1704376313659,-500.0,0.00035342,2]
[310126284,1704376313669,-500.0,0.00035342,2]
[310126285,1704376313679,-500.0,0.00035342,2]
[310126286,1704376313690,-717.82,0.00035342,2]
[310126287,1704376313701,-500.0,0.00035342,2]
[310126288,1704376313712,-669.95,0.00035342,2]
[310126289,1704376313723,-500.0,0.00035342,2]
[310126290,1704376313734,-500.0,0.00035342,2]
[310126291,1704376313744,-500.0,0.00035342,2]
[310126292,1704376313755,-500.0,0.00035342,2]
[310126293,1704376313765,-531.11400617,0.00035342,2]
[310126294,1704376313776,-591.79,0.00035342,2]
[310126295,1704376313785,-500.0,0.00035342,2]
[310126296,1704376313797,-500.0,0.00035342,2]
[310126297,1704376313808,-500.0,0.00035342,2]
[310126298,1704376313819,-406.48,0.00035342,2]
[310126299,1704376313829,-500.0,0.00035342,2]
[310126300,1704376313840,-500.0,0.00035342,2]
[310126301,1704376313852,-500.0,0.00035342,2]
[310126302,1704376314048,-500.0,0.00035342,2]
[310126303,1704376314059,-500.0,0.00035342,2]
[310126304,1704376314068,-1654.56,0.00035342,2]
[310126305,1704376314079,-500.0,0.00035342,2]
[310126306,1704376314089,-500.0,0.00035342,2]
[310126307,1704376314099,-516.6,0.00035342,2]
[310126308,1704376314110,-500.0,0.00035342,2]
[310126309,1704376314119,-500.0,0.00035342,2]
[310126310,1704376314128,-519.53,0.00035342,2]
[310126311,1704376314137,-500.0,0.00035342,2]
[310126312,1704376314148,-1518.1,0.00035342,2]
[310126313,1704376314157,-844.17,0.00035342,2]
[310126314,1704376314167,-500.0,0.00035342,2]
[310126315,1704376314177,-500.0,0.00035342,2]
[310126316,1704376314187,-500.0,0.00035342,2]
[310126317,1704376314197,-1154.94,0.00035342,2]
[310126318,1704376314207,-617.43133361,0.00035342,2]
[310126319,1704376314217,-500.0,0.00035342,2]
[310126320,1704376314227,-500.0,0.00035342,2]
[310126321,1704376314236,-500.0,0.00035342,2]
[310126322,1704376314246,-500.0,0.00035342,2]
[310126323,1704376314256,-500.0,0.00035342,2]
[310126324,1704376314265,-500.0,0.00035342,2]
[310126325,1704376314275,-685.93,0.00035342,2]
[310126326,1704376314286,-500.0,0.00035342,2]
[310126327,1704376314295,-500.0,0.00035342,2]
[310126328,1704376314306,-500.0,0.00035342,2]
[310126329,1704376314315,-500.0,0.00035342,2]
[310126330,1704376314325,-547.44,0.00035342,2]
[310126331,1704376314336,-500.0,0.00035342,2]
[310126332,1704376314346,-732.57,0.00035342,2]
[310126333,1704376314356,-500.0,0.00035342,2]
[310126334,1704376314366,-500.0,0.00035342,2]
[310126335,1704376314376,-790.13,0.00035342,2]
[310126336,1704376314386,-828.91,0.00035342,2]
[310126337,1704376314396,-500.0,0.00035342,2]
[310126338,1704376314407,-500.0,0.00035342,2]
[310126339,1704376314417,-216.13277658,0.00035342,2]
[310126340,1704376314427,-711.96,0.00035342,2]
[310126341,1704376314437,-536.01,0.00035342,2]
[310126342,1704376314447,-500.0,0.00035342,2]
[310126343,1704376314458,-500.0,0.00035342,2]
[310126344,1704376314469,-608.12,0.00035342,2]
[310126345,1704376314480,-4986.82,0.00035342,2]
[310126346,1704376314490,-500.0,0.00035342,2]
[310126347,1704376314500,-866.33,0.00035342,2]
[310126348,1704376314510,-2106.08,0.00035342,2]
[310126349,1704376314520,-500.0,0.00035342,2]
[310126350,1704376314529,-500.0,0.00035342,2]
[310126351,1704376314539,-500.0,0.00035342,2]
[310126352,1704376314550,-2265.71,0.00035342,2]
[310126353,1704376314560,-500.0,0.00035342,2]
[310126354,1704376314570,-767.02,0.00035342,2]
[310126355,1704376314580,-500.0,0.00035342,2]
[310126356,1704376314589,-500.0,0.00035342,2]
[310126357,1704376314599,-1141.21,0.00035342,2]
[310126358,1704376314609,-500.0,0.00035342,2]
[310126359,1704376314618,-500.0,0.00035342,2]
[310126360,1704376314629,-500.0,0.00035342,2]
[310126361,1704376314639,-855.1,0.00035342,2]
[310126362,1704376314649,-616.17,0.00035342,2]
[310126363,1704376314659,-500.0,0.00035342,2]
[310126364,1704376314668,-500.0,0.00035342,2]
[310126365,1704376314677,-500.0,0.00035342,2]
[310126366,1704376314687,-500.0,0.00035342,2]
[310126367,1704376314696,-500.0,0.00035342,2]
[310126368,1704376314706,-500.0,0.00035342,2]
[310126369,1704376314716,-1115.17,0.00035342,2]
[310126370,1704376314725,-500.0,0.00035342,2]
[310126371,1704376314735,-500.0,0.00035342,2]
[310126372,1704376314744,-358.80005458,0.00035342,2]
[310126373,1704376314754,-500.0,0.00035342,2]
[310126374,1704376314764,-3455.17,0.00035342,2]
[310126375,1704376314773,-500.0,0.00035342,2]
[310126376,1704376314783,-357.88,0.00035342,2]
[310126377,1704376314792,-3050.39,0.00035342,2]
[310126378,1704376314802,-1355.05,0.00035342,2]
[310126379,1704376314812,-926.09,0.00035342,2]
[310126380,1704376314821,-500.0,0.00035342,2]
[310126381,1704376314831,-500.0,0.00035342,2]
[310126382,1704376314841,-3332.3,0.00035342,2]
[310126383,1704376314850,-500.0,0.00035342,2]
[310126384,1704376314863,-500.0,0.00035342,2]
[310126385,1704376314873,-438.31132512,0.00035342,2]
[310126386,1704376314883,-622.83,0.00035342,2]
[310126387,1704376314893,-500.0,0.00035342,2]
[310126388,1704376314903,-2331.02,0.00035342,2]
[310126389,1704376314913,-500.0,0.00035342,2]
[310126390,1704376314922,-660.0,0.00035342,2]
[310126391,1704376314932,-500.0,0.00035342,2]
[310126392,1704376314941,-500.0,0.00035342,2]
[310126393,1704376314951,-500.0,0.00035342,2]
[310126394,1704376314961,-500.0,0.00035342,2]
[310126395,1704376314971,-661.88,0.00035342,2]
[310126396,1704376314980,-500.0,0.00035342,2]
[310126397,1704376314989,-500.0,0.00035342,2]
[310126398,1704376314999,-2608.4,0.00035342,2]
[310126399,1704376315009,-500.0,0.00035342,2]
[310126400,1704376315018,-1494.03,0.00035342,2]
[310126401,1704376315028,-1463.43,0.00035342,2]
[310126402,1704376315038,-500.0,0.00035342,2]
[310126403,1704376315048,-1043.9,0.00035342,2]
[310126404,1704376315058,-598.95,0.00035342,2]
[310126405,1704376315067,-1024.71,0.00035342,2]
[310126406,1704376315077,-500.0,0.00035342,2]
[310126407,1704376315086,-500.0,0.00035342,2]
[310126408,1704376315096,-609.43,0.00035342,2]
[310126409,1704376315106,-1321.13,0.00035342,2]
[310126410,1704376315117,-1809.81,0.00035342,2]
[310126411,1704376315127,-741.24,0.00035342,2]
[310126412,1704376315136,-955.44,0.00035342,2]
[310126413,1704376315146,-1179.95,0.00035342,2]
[310126414,1704376315156,-568.4,0.00035342,2]
[310126415,1704376315165,-824.39,0.00035342,2]
[310126416,1704376315175,-896.64,0.00035342,2]
[310126417,1704376315185,-500.0,0.00035342,2]
[310126418,1704376315195,-745.04,0.00035342,2]
[310126419,1704376315204,-673.43,0.00035342,2]
[310126420,1704376315214,-780.4,0.00035342,2]
[310126421,1704376315224,-537.65,0.00035342,2]
[310126422,1704376315234,-1236.0,0.00035342,2]
[310126423,1704376315245,-500.0,0.00035342,2]
[310126424,1704376315255,-642.93,0.00035342,2]
[310126425,1704376315265,-837.04,0.00035342,2]
[310126426,1704376315274,-1050.16,0.00035342,2]
[310126427,1704376315284,-500.0,0.00035342,2]
[310126428,1704376315294,-598.03520551,0.00035342,2]
[310126429,1704376315304,-275.71207925,0.00035342,2]
[310126430,1704376315314,-969.09,0.00035342,2]
[310126431,1704376315323,-500.0,0.00035342,2]
[310126432,1704376315333,-626.59,0.00035342,2]
[310126433,1704376315343,-532.7,0.00035342,2]
[310126434,1704376315352,-500.0,0.00035342,2]
[310126435,1704376315363,-517.15,0.00035342,2]
[310126436,1704376315372,-976.99,0.00035342,2]
[310126437,1704376315383,-833.15,0.00035342,2]
[310126438,1704376315393,-500.0,0.00035342,2]
[310126439,1704376315403,-500.0,0.00035342,2]
[310126440,1704376315413,-517.44,0.00035342,2]
[310126441,1704376315422,-500.0,0.00035342,2]
[310126442,1704376315432,-588.23,0.00035342,2]
[310126443,1704376315442,-2663.85,0.00035342,2]
[310126444,1704376315451,-524.48,0.00035342,2]
[310126445,1704376315461,-762.82,0.00035342,2]
[310126446,1704376315472,-3366.34,0.00035342,2]
[310126447,1704376315482,-516.2,0.00035342,2]
[310126448,1704376315492,-7010.51,0.00035342,2]
[310126449,1704376315502,-500.0,0.00035342,2]
[310126450,1704376315512,-500.0,0.00035342,2]
[310126451,1704376315521,-500.0,0.00035342,2]
[310126452,1704376315531,-864.34,0.00035342,2]
[310126453,1704376315541,-151.0,0.00035366,7]
[310126454,1704376315550,-22222.00006428,0.000354,7]
[310126455,1704376315560,-501.0,0.000354,24]
[310126456,1704376315570,-151.69064531,0.00035409,2]
[310126457,1704376315580,-154.245598,0.00035451,2]
[310126458,1704376315590,-1004.99886695,0.00035455,14]
[310126459,1704376315599,-337.13765,0.00035481,2]
[310126460,1704376315610,-456.180966,0.00035481,2]
[310126461,1704376315619,-1000.0,0.00035484,15]
[310126462,1704376315628,-157.40104,0.00035498,2]
[310126463,1704376315637,-1000.55288486,0.000355,2]
[310126464,1704376315647,-2095.03128236,0.000355,2]
[310126465,1704376315657,-158.24764484,0.000355,30]
[310126466,1704376315667,-157.53,0.000355,3]
[310126467,1704376315677,-157.53,0.000355,3]
[310126468,1704376315687,-157.53,0.000355,3]
[310126469,1704376315697,-157.53,0.000355,3]
[310126470,1704376315709,-159.57499854,0.00035504,14]
[310126471,1704376315720,-1004.99886695,0.00035507,14]
[310126472,1704376315729,-151.3449159,0.00035528,14]
[310126473,1704376315739,-420.61578195,0.00035538,14]
[310126474,1704376315749,-206.0,0.0003555,2]
[310126475,1704376315759,-2922.09,0.00035555,7]
[310126476,1704376315769,-2922.09,0.00035555,7]
[310126477,1704376315779,-420.61578195,0.00035559,14]
[310126478,1704376315792,-1004.99886695,0.0003556,14]
[310126479,1704376315802,-151.36920844,0.00035572,14]
[310126480,1704376315817,-1004.99886695,0.00035572,14]
[310126481,1704376315826,-420.61578195,0.00035574,14]
[310126482,1704376315836,-500.0,0.00035575,2]
[310126483,1704376315847,-166.99,0.00035584,2]
[310126484,1704376315858,-167.01,0.00035584,2]
[310126485,1704376315868,-167.01,0.00035584,2]
[310126486,1704376315879,-162.46684797,0.00035589,30]
[310126487,1704376315891,-921.70508425,0.000356,10]
[310126488,1704376315902,-1000.0,0.000356,2]
[310126489,1704376315914,-10033.75,0.000356,3]
[310126490,1704376315925,-10033.75,0.000356,3]
[310126491,1704376315936,-10033.75,0.000356,3]
[310126492,1704376315947,-10033.75,0.000356,3]
[310126493,1704376315958,-10033.75,0.000356,3]
[310126494,1704376315972,-10033.75,0.000356,3]
[310126495,1704376315985,-10033.75,0.000356,3]
[310126496,1704376315996,-10033.75,0.000356,3]
[310126497,1704376316006,-10033.75,0.000356,3]
[310126498,1704376316017,-10033.75,0.000356,3]
[310126499,1704376316027,-10033.75,0.000356,3]
[310126500,1704376316038,-10033.75,0.000356,3]
[310126501,1704376316048,-10033.75,0.000356,3]
[310126502,1704376316058,-10033.75,0.000356,3]
[310126503,1704376316068,-10033.75,0.000356,3]
[310126504,1704376316078,-10033.75,0.000356,3]
[310126505,1704376316089,-10033.75,0.000356,3]
[310126506,1704376316099,-10033.75,0.000356,3]
[310126507,1704376316109,-10033.75,0.000356,3]
[310126508,1704376316118,-10033.75,0.000356,3]
[310126509,1704376316129,-420.61578195,0.00035608,14]
[310126510,1704376316138,-1105.69,0.00035616,2]
[310126511,1704376316148,-507.35795964,0.00035616,2]
[310126512,1704376316158,-500.0,0.00035616,2]
[310126513,1704376316168,-500.0,0.00035616,2]
[310126514,1704376316178,-550.1,0.00035616,2]
[310126515,1704376316188,-500.0,0.00035616,2]
[310126516,1704376316198,-500.0,0.00035616,2]
[310126517,1704376316207,-475.78723318,0.00035616,2]
[310126518,1704376316217,-500.0,0.00035616,2]
[310126519,1704376316226,-500.0,0.00035616,2]
[310126520,1704376316236,-500.0,0.00035616,2]
[310126521,1704376316246,-688.97,0.00035616,2]
[310126522,1704376316255,-755.75,0.00035616,2]
[310126523,1704376316265,-1506.91,0.00035616,2]
[310126524,1704376316274,-500.0,0.00035616,2]
[310126525,1704376316284,-500.0,0.00035616,2]
[310126526,1704376316294,-872.68,0.00035616,2]
[310126527,1704376316304,-500.0,0.00035616,2]
[310126528,1704376316313,-1266.42,0.00035616,2]
[310126529,1704376316323,-529.57321747,0.00035616,2]
[310126530,1704376316333,-500.0,0.00035616,2]
[310126531,1704376316343,-500.0,0.00035616,2]
[310126532,1704376316352,-1122.66,0.00035616,2]
[310126533,1704376316363,-500.0,0.00035616,2]
[310126534,1704376316372,-150.0,0.00035616,2]
[310126535,1704376316382,-300.0,0.00035616,7]
[310126536,1704376316487,-450.0,0.00035616,12]
[310126537,1704376316497,-600.0,0.00035616,17]
[310126538,1704376316507,-311.0731957,0.00035616,22]
[310126539,1704376316517,-500.0,0.00035616,2]
[310126540,1704376316527,-500.0,0.00035616,2]
[310126541,1704376316536,-683.22,0.00035616,2]
[310126542,1704376316546,-500.0,0.00035616,2]
[310126543,1704376316555,-500.0,0.00035616,2]
[310126544,1704376316565,-500.0,0.00035616,2]
[310126545,1704376316575,-559.7,0.00035616,2]
[310126546,1704376316585,-500.0,0.00035616,2]
[310126547,1704376316594,-500.0,0.00035616,2]
[310126548,1704376316603,-500.0,0.00035616,2]
[310126549,1704376316614,-500.0,0.00035616,2]
[310126550,1704376316623,-500.0,0.00035616,2]
[310126551,1704376316633,-500.0,0.00035616,2]
[310126552,1704376316642,-500.0,0.00035616,2]
[310126553,1704376316651,-1749.13,0.00035616,2]
[310126554,1704376316662,-503.48,0.00035616,2]
[310126555,1704376316671,-500.0,0.00035616,2]
[310126556,1704376316681,-352.56314563,0.00035616,2]
[310126557,1704376316690,-554.94753888,0.00035616,2]
[310126558,1704376316700,-500.0,0.00035616,2]
[310126559,1704376316710,-500.0,0.00035616,2]
[310126560,1704376316720,-604.90804462,0.00035616,2]
[310126561,1704376316731,-500.0,0.00035616,2]